bitfinex/quotes_SOLUSD_20230111
["timestamp","ask_amount","ask_price","bid_price","bid_amount"]
[1673473019211,1.92,15.862,15.852,20.0]
[1673473021441,1.92,15.862,15.851,113.3305]
[1673473022619,1.92,15.862,15.852,20.0]
[1673473022921,1.92,15.862,15.851,113.3305]
[1673473024593,1.92,15.862,15.852,20.0]
[1673473024805,1.92,15.862,15.851,113.3305]
[1673473026408,1.92,15.862,15.852,20.0]
[1673473028171,17.0,15.863,15.852,20.0]
[1673473028500,5.79187,15.864,15.852,20.0]
[1673473028687,5.79187,15.864,15.853,47.32]
[1673473028884,5.79187,15.864,15.852,67.32]
[1673473029094,5.79187,15.864,15.852,47.32]
[1673473029311,5.79187,15.863,15.852,47.32]
[1673473029521,20.0,15.867,15.853,17.95336687]
[1673473029737,20.0,15.867,15.854,47.32]
[1673473029943,20.0,15.868,15.855,20.0]
[1673473030159,13.53,15.87,15.855,20.0]
[1673473030160,20.0,15.869,15.856,47.31]
[1673473030773,0.96,15.868,15.856,47.31]
[1673473031086,1.92,15.868,15.857,20.0]
[1673473031304,47.26,15.874,15.859,20.0]
[1673473031528,5.79187,15.873,15.86,47.3]
[1673473031733,5.79187,15.873,15.86,65.25336687]
[1673473032044,5.79187,15.873,15.861,20.0]
[1673473032256,5.79187,15.873,15.862,47.29]
[1673473032988,1.92,15.872,15.862,47.29]
[1673473041494,18.92,15.872,15.862,47.29]
[1673473041722,18.92,15.872,15.861,47.3]
[1673473042772,18.92,15.872,15.862,20.0]
[1673473043297,18.92,15.872,15.861,47.3]
[1673473043612,18.92,15.872,15.862,20.0]
[1673473043812,1.92,15.872,15.862,20.0]
[1673473049182,1.42,15.872,15.862,20.0]
[1673473049493,0.96,15.872,15.862,20.0]
[1673473050028,5.79187,15.873,15.863,47.29]
[1673473050238,67.25,15.877,15.862,20.0]
[1673473050436,17.96,15.876,15.862,20.0]
[1673473051401,0.96,15.875,15.863,47.29]
[1673473051604,0.96,15.874,15.863,47.29]
[1673473052340,0.96,15.874,15.864,108.3448]
[1673473052741,0.96,15.873,15.864,108.3448]
[1673473052955,0.96,15.872,15.864,108.3448]
[1673473054443,0.96,15.871,15.864,108.3448]
[1673473054659,0.96,15.871,15.859,47.3]
[1673473054969,0.96,15.87,15.858,118.6153]
[1673473055283,0.96,15.869,15.859,20.0]
[1673473055501,0.96,15.868,15.859,20.0]
[1673473056433,0.96,15.868,15.859,67.3]
[1673473056958,0.96,15.868,15.859,20.0]
[1673473058127,0.96,15.867,15.859,20.0]
[1673473058336,0.96,15.866,15.859,20.0]
[1673473058542,0.96,15.865,15.859,20.0]
[1673473058749,0.96,15.866,15.859,67.3]
[1673473058970,0.96,15.866,15.859,20.0]
[1673473061072,0.96,15.866,15.858,20.0]
[1673473061073,0.96,15.865,15.858,20.0]
[1673473061385,0.96,15.864,15.858,20.0]
[1673473061579,0.96,15.864,15.857,47.31]
[1673473061790,0.96,15.864,15.856,110.8704]
[1673473063382,0.96,15.863,15.856,110.8704]
[1673473063595,0.96,15.862,15.856,110.8704]
[1673473063819,0.96,15.861,15.856,110.8704]
[1673473064122,0.96,15.861,15.852,47.32]
[1673473064310,0.96,15.86,15.849,67.33]
[1673473064642,0.96,15.859,15.849,67.33]
[1673473064857,0.96,15.858,15.849,67.33]
[1673473068969,20.0,15.864,15.849,67.33]
[1673473069182,25.79187,15.864,15.849,67.33]
[1673473069698,5.79187,15.864,15.849,67.33]
[1673473070865,18.92,15.863,15.849,67.33]
[1673473076327,18.92,15.863,15.849,47.33]
[1673473076529,0.96,15.863,15.849,47.33]
[1673473076724,5.79187,15.864,15.849,47.33]
[1673473076939,5.79187,15.864,15.85,20.0]
[1673473077159,5.79187,15.864,15.851,47.33]
[1673473077573,5.79187,15.864,15.852,20.0]
[1673473078000,5.79187,15.864,15.854,20.0]
[1673473078323,18.92,15.863,15.854,20.0]
[1673473082622,1.92,15.863,15.854,20.0]
[1673473082836,18.92,15.863,15.854,20.0]
[1673473083900,1.92,15.863,15.854,20.0]
[1673473084091,0.96,15.863,15.854,20.0]
[1673473084949,5.79187,15.864,15.854,20.0]
[1673473085164,20.0,15.868,15.854,20.0]
[1673473085343,0.96,15.867,15.854,20.0]
[1673473086731,0.96,15.866,15.854,20.0]
[1673473086937,25.79187,15.868,15.854,20.0]
[1673473087556,25.79187,15.868,15.855,47.31]
[1673473088416,18.92,15.867,15.855,47.31]
[1673473089131,18.92,15.867,15.854,20.0]
[1673473090180,24.71187,15.867,15.854,20.0]
[1673473090391,5.79187,15.867,15.854,20.0]
[1673473090707,20.0,15.868,15.854,67.32]
[1673473091877,17.96,15.867,15.854,47.32]
[1673473092072,53.07187,15.866,15.851,166.724]
[1673473092286,6.75187,15.865,15.851,119.394]
[1673473092592,5.79187,15.864,15.851,119.394]
[1673473092806,0.96,15.863,15.851,119.394]
[1673473093025,0.96,15.863,15.852,67.32]
[1673473093239,0.96,15.863,15.852,47.32]
[1673473093451,0.96,15.863,15.851,119.394]
[1673473094194,0.96,15.862,15.851,119.394]
[1673473094381,0.96,15.861,15.851,119.394]
[1673473094591,0.96,15.86,15.851,119.394]
[1673473094804,0.96,15.859,15.851,119.394]
[1673473096613,0.96,15.859,15.852,20.0]
[1673473098074,0.96,15.859,15.85,47.33]
[1673473098393,0.96,15.858,15.849,67.33]
[1673473098607,0.96,15.857,15.849,20.0]
[1673473101764,47.29,15.863,15.849,20.0]
[1673473101949,53.08187,15.863,15.849,20.0]
[1673473102160,5.79187,15.863,15.851,20.0]
[1673473102916,5.79187,15.863,15.852,47.32]
[1673473103852,18.92,15.862,15.852,47.32]
[1673473115092,5.79187,15.863,15.852,47.32]
[1673473115315,463.38,15.867,15.852,47.32]
[1673473115529,18.92,15.866,15.853,20.0]
[1673473118875,396.1,15.867,15.854,64.32]
[1673473119091,20.0,15.868,15.855,20.0]
[1673473119301,20.0,15.869,15.856,47.31]
[1673473120366,18.92,15.868,15.856,47.31]
[1673473120788,20.0,15.867,15.856,47.31]
[1673473120998,1.92,15.866,15.856,47.31]
[1673473121196,0.96,15.866,15.856,47.31]
[1673473122029,0.96,15.868,15.856,47.31]
[1673473122244,0.96,15.869,15.858,20.0]
[1673473122466,47.26,15.874,15.859,67.3]
[1673473122681,1.92,15.873,15.859,67.3]
[1673473122893,21.92,15.873,15.859,67.3]
[1673473123091,5.79187,15.872,15.859,20.0]
[1673473123301,1.92,15.871,15.858,20.0]
[1673473123822,18.92,15.871,15.858,20.0]
[1673473124031,17.0,15.87,15.858,20.0]
[1673473124239,0.96,15.869,15.858,20.0]
[1673473124560,0.96,15.868,15.858,20.0]
[1673473126032,0.96,15.868,15.858,40.0]
[1673473126237,53.05187,15.872,15.859,20.0]
[1673473126468,5.79187,15.872,15.859,67.3]
[1673473127415,17.0,15.871,15.859,67.3]
[1673473127730,1.92,15.87,15.859,67.3]
[1673473128971,5.79187,15.872,15.859,67.3]
[1673473130333,18.92,15.871,15.859,67.3]
[1673473134852,18.92,15.871,15.859,47.3]
[1673473135490,18.92,15.871,15.858,135.5431]
[1673473137171,18.92,15.871,15.859,47.3]
[1673473138549,20.0,15.87,15.859,47.3]
[1673473138883,20.0,15.87,15.85,33.57]
[1673473138884,24.71187,15.869,15.852,164.9241]
[1673473139055,93.06187,15.868,15.852,117.6041]
[1673473139261,24.71187,15.867,15.852,117.6041]
[1673473139477,53.07187,15.866,15.852,117.6041]
[1673473139696,24.71187,15.865,15.852,117.6041]
[1673473140423,71.99187,15.865,15.852,117.6041]
[1673473144855,53.07187,15.865,15.852,117.6041]
[1673473145057,5.79187,15.865,15.852,117.6041]
[1673473146332,18.92,15.864,15.852,117.6041]
[1673473147283,18.92,15.864,15.853,47.32]
[1673473148009,18.92,15.864,15.852,117.6041]
[1673473150017,1.92,15.864,15.852,117.6041]
[1673473150208,1.92,15.864,15.853,47.32]
[1673473151383,18.92,15.864,15.853,47.32]
[1673473155163,18.92,15.864,15.852,117.6041]
[1673473155796,0.96,15.864,15.853,17.0]
[1673473156113,1250.0,15.867,15.854,20.0]
[1673473156307,1250.0,15.867,15.855,47.31]
[1673473156518,1250.0,15.867,15.855,17.0]
[1673473157358,0.96,15.866,15.855,17.0]
[1673473162415,1250.0,15.867,15.855,17.0]
[1673473164527,1250.0,15.867,15.854,47.32]
[1673473164836,20.0,15.865,15.853,47.32]
[1673473165049,0.96,15.864,15.853,47.32]
[1673473165448,0.96,15.864,15.852,117.6041]
[1673473165449,0.96,15.863,15.852,117.6041]
[1673473165672,53.08187,15.862,15.849,47.33]
[1673473165865,18.92,15.861,15.849,47.33]
[1673473166077,18.92,15.861,15.848,158.9934]
[1673473166287,18.92,15.861,15.849,20.0]
[1673473166917,13.43,15.86,15.849,20.0]
[1673473167125,18.92,15.859,15.849,20.0]
[1673473168813,18.92,15.859,15.849,40.0]
[1673473169035,18.92,15.859,15.85,20.0]
[1673473169243,0.96,15.859,15.85,67.33]
[1673473169981,0.96,15.859,15.85,47.33]
[1673473172512,5.79187,15.862,15.85,47.33]
[1673473172732,18.92,15.861,15.85,47.33]
[1673473177145,5.79187,15.862,15.851,20.0]
[1673473177457,1297.28,15.867,15.851,20.0]
[1673473177667,1297.28,15.867,15.852,47.32]
[1673473178074,20.0,15.866,15.852,47.32]
[1673473178405,17.96,15.865,15.852,47.32]
[1673473178621,0.96,15.864,15.852,47.32]
[1673473178810,0.96,15.863,15.852,47.32]
[1673473180608,0.96,15.863,15.851,47.33]
[1673473183010,0.96,15.863,15.852,20.0]
[1673473183223,17.0,15.865,15.853,47.32]
[1673473183447,0.96,15.864,15.853,47.32]
[1673473184483,0.96,15.864,15.851,47.33]
[1673473184696,0.96,15.864,15.852,18.92]
[1673473185007,0.96,15.864,15.853,47.32]
[1673473191324,1250.0,15.867,15.853,47.32]
[1673473191533,0.96,15.866,15.854,18.92]
[1673473191747,1250.0,15.867,15.855,47.31]
[1673473195008,0.96,15.866,15.855,47.31]
[1673473195326,20.96,15.865,15.852,47.32]
[1673473195517,20.96,15.865,15.851,47.33]
[1673473196379,20.96,15.865,15.852,1.92]
[1673473196569,20.96,15.865,15.853,47.32]
[1673473197315,48.25,15.864,15.849,67.33]
[1673473197533,20.96,15.863,15.849,20.0]
[1673473197737,17.96,15.862,15.849,20.0]
[1673473197960,13.57,15.86,15.849,20.0]
[1673473198369,17.96,15.859,15.849,20.0]
[1673473198587,0.96,15.858,15.849,20.0]
[1673473198800,0.96,15.857,15.849,20.0]
[1673473200480,17.0,15.859,15.849,20.0]
[1673473200687,0.96,15.858,15.849,20.0]
[1673473201091,17.0,15.859,15.849,20.0]
[1673473201320,13.57,15.86,15.849,20.0]
[1673473201509,0.96,15.859,15.849,20.0]
[1673473202994,0.96,15.859,15.849,40.0]
[1673473203213,13.57,15.86,15.849,40.0]
[1673473203417,13.57,15.86,15.85,47.33]
[1673473204882,18.92,15.859,15.849,20.0]
[1673473205518,20.0,15.858,15.849,20.0]
[1673473205732,20.0,15.858,15.83,32.8578963]
[1673473205733,38.92,15.857,15.842,167.1099]
[1673473205921,13.57,15.85,15.842,119.7599]
[1673473212545,13.57,15.85,15.843,20.0]
[1673473212766,13.57,15.85,15.842,119.7599]
[1673473217696,67.31,15.855,15.842,119.7599]
[1673473217905,18.92,15.854,15.842,119.7599]
[1673473219386,47.32,15.853,15.838,47.36]
[1673473219584,47.32,15.853,15.838,180.5086]
[1673473219585,17.96,15.852,15.838,180.5086]
[1673473219818,18.92,15.852,15.839,20.0]
[1673473220226,1.92,15.852,15.84,110.0068]
[1673473223490,1.92,15.852,15.84,109.5068]
[1673473225888,1.92,15.852,15.84,156.8668]
[1673473226856,13.53,15.85,15.84,156.8668]
[1673473227286,13.53,15.85,15.84,109.5068]
[1673473233775,13.53,15.85,15.841,20.0]
[1673473236936,0.96,15.852,15.841,20.0]
[1673473237892,47.31,15.855,15.841,20.0]
[1673473238212,18.92,15.854,15.841,20.0]
[1673473238518,18.92,15.854,15.842,47.35]
[1673473238713,18.92,15.854,15.841,67.36]
[1673473239886,159.0584,15.856,15.842,21.92]
[1673473240203,111.7484,15.856,15.844,20.0]
[1673473240427,111.7484,15.856,15.845,47.34]
[1673473241254,0.96,15.855,15.845,47.34]
[1673473246191,111.7484,15.856,15.845,47.34]
[1673473246522,111.7484,15.856,15.846,20.0]
[1673473246725,111.7484,15.856,15.847,47.34]
[1673473249987,20.0,15.857,15.847,47.34]
[1673473250191,20.0,15.858,15.847,47.34]
[1673473250402,1270.0,15.858,15.847,47.34]
[1673473251967,1270.0,15.858,15.846,20.0]
[1673473252182,1250.0,15.858,15.848,20.0]
[1673473252510,1250.0,15.86,15.849,47.33]
[1673473252723,1250.0,15.863,15.849,47.33]
[1673473252913,38.92,15.862,15.849,47.33]
[1673473253663,38.92,15.862,15.848,183.7247]
[1673473253869,47.29,15.862,15.849,20.0]
[1673473254083,1297.29,15.863,15.85,1.92]
[1673473254294,1297.29,15.863,15.85,49.25]
[1673473254723,1297.29,15.863,15.85,1.92]
[1673473255221,1.92,15.862,15.849,47.33]
[1673473255428,20.0,15.859,15.848,47.33]
[1673473255664,20.0,15.859,15.844,47.35]
[1673473255665,20.0,15.858,15.844,47.35]
[1673473255975,20.0,15.858,15.845,18.92]
[1673473256170,20.0,15.858,15.846,47.34]
[1673473256380,20.0,15.858,15.847,18.92]
[1673473260287,1270.0,15.858,15.847,18.92]
[1673473260795,20.0,15.857,15.847,18.92]
[1673473262702,1270.0,15.857,15.847,18.92]
[1673473262893,20.96,15.856,15.844,47.35]
[1673473263104,20.96,15.856,15.843,47.35]
[1673473263309,17.96,15.855,15.843,47.35]
[1673473263525,13.51,15.85,15.84,109.5068]
[1673473263850,0.96,15.849,15.84,109.5068]
[1673473265953,0.96,15.849,15.835,47.37]
[1673473266166,20.0,15.847,15.836,1.92]
[1673473266692,1270.0,15.847,15.833,47.38]
[1673473266885,0.96,15.846,15.833,47.38]
[1673473267305,65.3,15.846,15.833,47.38]
[1673473267515,20.0,15.845,15.833,47.38]
[1673473268157,20.0,15.845,15.832,225.1799]
[1673473268483,0.96,15.844,15.832,225.1799]
[1673473269425,20.96,15.843,15.832,225.1799]
[1673473269619,17.96,15.842,15.832,114.8495]
[1673473269947,13.58,15.84,15.826,47.4]
[1673473270139,13.58,15.84,15.827,20.0]
[1673473270350,13.58,15.84,15.828,47.39]
[1673473270555,13.58,15.84,15.829,20.0]
[1673473270783,17.96,15.839,15.829,20.0]
[1673473271203,17.96,15.839,15.828,20.0]
[1673473271523,20.0,15.838,15.827,47.4]
[1673473271838,20.0,15.838,15.826,114.2334]
[1673473271839,38.92,15.837,15.826,114.2334]
[1673473272029,47.37,15.836,15.826,114.2334]
[1673473272240,17.96,15.835,15.826,114.2334]
[1673473272453,86.29,15.837,15.826,114.2334]
[1673473273087,105.43496728,15.837,15.826,114.2334]
[1673473273612,105.43496728,15.837,15.823,47.41]
[1673473273942,105.43496728,15.837,15.822,30.8089417]
[1673473275627,66.51496728,15.837,15.822,30.8089417]
[1673473275941,47.37,15.837,15.825,18.92]
[1673473276126,1270.0,15.838,15.825,18.92]
[1673473276332,1270.0,15.838,15.826,47.4]
[1673473277403,1250.0,15.838,15.826,47.4]
[1673473277601,13.66,15.84,15.827,20.0]
[1673473277602,1250.0,15.839,15.827,20.0]
[1673473277830,1250.0,15.839,15.828,65.35]
[1673473278046,1250.0,15.839,15.829,20.96]
[1673473278244,1250.0,15.842,15.83,47.39]
[1673473278457,1250.0,15.842,15.831,18.92]
[1673473278791,1250.0,15.843,15.832,47.38]
[1673473279008,1250.0,15.843,15.833,18.92]
[1673473281737,1250.0,15.843,15.832,113.8841]
[1673473282456,20.0,15.842,15.832,113.8841]
[1673473282668,13.51,15.84,15.832,113.8841]
[1673473285940,1250.0,15.843,15.832,113.8841]
[1673473286141,1250.0,15.843,15.833,21.92]
[1673473286352,1250.0,15.847,15.833,69.3]
[1673473286560,47.34,15.846,15.833,69.3]
[1673473286775,1250.0,15.847,15.833,49.3]
[1673473286992,1250.0,15.847,15.834,17.0]
[1673473287182,1250.0,15.847,15.835,1.92]
[1673473287706,20.0,15.847,15.835,1.92]
[1673473288553,20.0,15.847,15.835,0.96]
[1673473288764,47.33,15.848,15.835,1.92]
[1673473288973,20.96,15.847,15.835,1.92]
[1673473295847,20.0,15.846,15.835,1.92]
[1673473296146,47.34,15.846,15.835,1.92]
[1673473298981,20.0,15.847,15.836,0.96]
[1673473299294,13.6,15.85,15.838,20.0]
[1673473299486,13.6,15.85,15.839,21.92]
[1673473299693,47.32,15.853,15.839,21.92]
[1673473299694,47.32,15.854,15.84,37.0]
[1673473299909,47.32,15.854,15.841,1.92]
[1673473300460,47.32,15.854,15.841,49.28]
[1673473300786,47.32,15.854,15.841,1.92]
[1673473300987,47.32,15.854,15.842,17.0]
[1673473301197,47.32,15.854,15.843,1.92]
[1673473301409,47.32,15.854,15.841,1.92]
[1673473301829,47.32,15.854,15.841,18.92]
[1673473302574,18.92,15.853,15.84,117.4723]
[1673473302792,67.32,15.852,15.84,117.4723]
[1673473303197,47.32,15.852,15.84,117.4723]
[1673473303938,13.45,15.85,15.84,117.4723]
[1673473307842,13.45,15.85,15.841,1.92]
[1673473308447,13.45,15.85,15.841,18.92]
[1673473311189,13.45,15.85,15.84,117.4723]
[1673473314865,13.45,15.85,15.84,164.8323]
[1673473315084,13.45,15.85,15.84,117.4723]
[1673473324333,13.47,15.85,15.84,117.4723]
[1673473337054,13.47,15.85,15.84,164.8323]
[1673473340848,13.47,15.85,15.841,0.96]
[1673473341166,13.47,15.85,15.84,164.8323]
[1673473343266,68.38099511,15.854,15.84,164.8323]
[1673473343472,68.38099511,15.854,15.841,21.92]
[1673473343473,1.92,15.853,15.841,21.92]
[1673473343685,1.92,15.853,15.842,47.35]
[1673473344001,68.38099511,15.854,15.843,0.96]
[1673473344002,48.38099511,15.854,15.843,0.96]
[1673473344194,111.9185,15.856,15.843,0.96]
[1673473344399,111.9185,15.856,15.844,48.31]
[1673473344617,111.9185,15.856,15.845,0.96]
[1673473344945,111.9185,15.856,15.846,47.34]
[1673473353772,0.96,15.855,15.846,47.34]
[1673473353982,38.92,15.855,15.842,47.35]
[1673473354194,86.23,15.855,15.841,47.36]
[1673473354697,38.92,15.855,15.841,47.36]
[1673473358913,19.14496728,15.854,15.841,47.36]
[1673473359130,19.14496728,15.854,15.84,117.4723]
[1673473359131,20.0,15.852,15.84,164.8323]
[1673473359333,1.92,15.851,15.84,164.8323]
[1673473359546,20.0,15.85,15.84,117.4723]
[1673473359750,18.92,15.849,15.84,117.4723]
[1673473360175,1317.33,15.848,15.834,47.38]
[1673473360391,18.92,15.847,15.833,47.38]
[1673473360606,47.34,15.846,15.832,224.143]
[1673473360824,38.92,15.845,15.832,224.143]
[1673473362513,20.0,15.843,15.832,224.143]
[1673473362816,18.92,15.842,15.832,224.143]
[1673473363863,18.92,15.842,15.832,113.8841]
[1673473364089,13.59,15.84,15.832,113.8841]
[1673473364272,17.96,15.839,15.832,113.8841]
[1673473364485,18.92,15.839,15.832,113.8841]
[1673473366906,0.96,15.839,15.832,113.8841]
[1673473367122,13.59,15.84,15.832,113.8841]
[1673473376795,20.0,15.844,15.832,113.8841]
[1673473377110,18.92,15.843,15.832,113.8841]
[1673473378050,13.59,15.84,15.832,113.8841]
[1673473379425,18.92,15.839,15.832,113.8841]
[1673473380049,18.92,15.839,15.828,47.39]
[1673473380262,18.92,15.839,15.829,20.0]
[1673473382378,13.59,15.84,15.829,40.0]
[1673473382581,67.34,15.846,15.83,49.31]
[1673473382917,20.0,15.846,15.831,17.0]
[1673473383129,20.0,15.846,15.832,158.1781]
[1673473383339,20.0,15.847,15.833,17.0]
[1673473383543,20.0,15.847,15.834,49.3]
[1673473383951,20.0,15.847,15.835,17.0]
[1673473384173,20.0,15.847,15.836,49.29]
[1673473384491,20.0,15.847,15.834,1.92]
[1673473384492,20.0,15.847,15.835,47.37]
[1673473384693,20.0,15.847,15.836,18.92]
[1673473385318,20.0,15.847,15.836,1.92]
[1673473386059,20.0,15.847,15.836,49.29]
[1673473386580,20.0,15.847,15.836,47.37]
[1673473386794,20.0,15.847,15.834,47.38]
[1673473387005,20.0,15.847,15.833,47.38]
[1673473387859,20.0,15.847,15.834,1.92]
[1673473388060,20.0,15.847,15.835,47.37]
[1673473388276,1270.0,15.848,15.836,0.96]
[1673473388587,1270.0,15.848,15.836,1.92]
[1673473388998,20.0,15.847,15.836,1.92]
[1673473390050,20.0,15.847,15.836,49.29]
[1673473390264,20.0,15.847,15.836,1.92]
[1673473392684,20.0,15.847,15.834,47.38]
[1673473392888,0.96,15.846,15.833,47.38]
[1673473393099,1.92,15.846,15.833,47.38]
[1673473393823,18.92,15.846,15.833,47.38]
[1673473394032,18.92,15.846,15.834,0.96]
[1673473394348,18.92,15.846,15.834,18.92]
[1673473396051,18.92,15.846,15.835,47.37]
[1673473396052,66.26,15.846,15.835,47.37]
[1673473396243,18.92,15.846,15.834,18.92]
[1673473396662,13.53,15.85,15.835,47.37]
[1673473396873,45.81204321,15.86,15.836,38.92]
[1673473397091,20.0,15.855,15.838,20.0]
[1673473397294,44.50993267,15.858,15.839,69.28]
[1673473397504,47.31,15.855,15.839,69.28]
[1673473397720,20.0,15.854,15.839,69.28]
[1673473397922,20.0,15.854,15.84,110.9264]
[1673473398128,20.0,15.854,15.841,49.28]
[1673473398787,1.92,15.853,15.841,49.28]
[1673473408042,0.96,15.853,15.841,49.28]
[1673473408257,0.96,15.854,15.841,49.28]
[1673473408465,1.92,15.854,15.841,49.28]
[1673473411415,1.92,15.854,15.842,17.0]
[1673473411724,1.92,15.854,15.843,47.35]
[1673473416031,43.7896,15.856,15.843,67.35]
[1673473416348,43.7896,15.856,15.844,18.92]
[1673473416542,43.7896,15.856,15.845,47.34]
[1673473418431,1.92,15.855,15.843,47.35]
[1673473423386,0.96,15.855,15.843,47.35]
[1673473423703,43.7896,15.856,15.844,1.92]
[1673473423899,43.7896,15.856,15.845,47.34]
[1673473424107,20.0,15.858,15.845,47.34]
[1673473424314,21.92,15.857,15.845,47.34]
[1673473425367,20.0,15.856,15.845,47.34]
[1673473427168,20.0,15.856,15.842,113.9101]
[1673473427379,18.92,15.855,15.842,113.9101]
[1673473427566,18.92,15.855,15.843,47.35]
[1673473428017,18.92,15.855,15.842,113.9101]
[1673473429194,18.92,15.855,15.843,47.35]
[1673473432342,20.0,15.857,15.844,1.92]
[1673473432542,20.0,15.857,15.845,47.34]
[1673473432754,20.0,15.857,15.846,18.92]
[1673473432963,13.73,15.86,15.847,67.34]
[1673473433177,13.73,15.86,15.848,1.92]
[1673473433388,13.73,15.86,15.849,47.33]
[1673473433606,13.73,15.86,15.85,1.92]
[1673473433922,13.73,15.86,15.851,47.33]
[1673473436950,20.0,15.863,15.851,47.33]
[1673473437171,1.92,15.862,15.851,47.33]
[1673473437492,18.92,15.862,15.851,47.33]
[1673473437686,18.92,15.862,15.849,47.33]
[1673473441798,0.96,15.862,15.85,0.96]
[1673473441992,47.29,15.863,15.85,1.92]
[1673473442842,1.92,15.862,15.85,18.92]
[1673473444003,1.92,15.862,15.851,47.33]
[1673473445053,21.92,15.862,15.851,47.33]
[1673473445379,21.92,15.862,15.85,18.92]
[1673473446003,1.92,15.862,15.85,18.92]
[1673473446213,1.92,15.862,15.851,47.33]
[1673473451802,17.0,15.863,15.851,47.33]
[1673473452111,47.27,15.868,15.852,21.92]
[1673473452327,164.5761,15.869,15.853,64.32]
[1673473452643,20.0,15.868,15.854,1.92]
[1673473452861,20.0,15.868,15.855,47.31]
[1673473453259,20.0,15.868,15.856,0.96]
[1673473453482,20.0,15.868,15.857,47.31]
[1673473453890,20.0,15.869,15.857,47.31]
[1673473455798,20.0,15.869,15.858,0.96]
[1673473456112,20.0,15.869,15.858,1.92]
[1673473456319,20.0,15.869,15.853,47.32]
[1673473456529,20.0,15.868,15.854,1.92]
[1673473456740,18.92,15.867,15.855,47.31]
[1673473457267,18.92,15.867,15.854,1.92]
[1673473458005,67.27,15.869,15.854,1.92]
[1673473458223,20.0,15.869,15.855,47.31]
[1673473458532,20.0,15.869,15.856,1.92]
[1673473458741,20.0,15.868,15.856,1.92]
[1673473459154,20.0,15.868,15.857,47.31]
[1673473459366,20.0,15.868,15.856,1.92]
[1673473460636,20.0,15.868,15.856,49.23]